Cogmind - Beta 15 --- EXPLORER MODE // 2025.05.07 @ 19:24:24 Player: Malo Result: Destroyed by D-53 Grenadier with Mini Grenade Launcher Performance ------------- Evolutions (0) 0 Regions Visited (0) 0 Robots Destroyed (0) 0 Value Destroyed (0) 0 Prototype IDs (0) 0 Alien Tech Used (0) 0 Bonus (0) 0 TOTAL SCORE: 0 Bonus ------- None Cogmind --------- Core Integrity 0/250 Matter 272/300 Energy 100/100 System Corruption 0% Temperature Cool (0) Movement Core (200) Ox3 Location -11/Scrapyard Parts ------- > --- POWER (1) -------- (None) > --- PROPULSION (2) --- (None) > --- UTILITY (2) ------ Medium Storage Unit Targeting Computer > --- WEAPON (2) ------- Light Assault Rifle > --- INVENTORY (10) --- (None) Peak State ------------ > --- POWER ------------ Light Ion Engine > --- PROPULSION ------- Light Treads Light Treads > --- UTILITY ---------- Medium Storage Unit Targeting Computer > --- WEAPON ----------- Small Laser Light Assault Rifle > --- INVENTORY -------- (None) [Rating: 7] Favorites ----------- Power Light Ion Engine Engine Light Ion Engine Propulsion Light Treads Treads Light Treads Utility Targeting Computer Storage Medium Storage Unit Processor Targeting Computer Weapon Light Assault Rifle Energy Gun Small Laser Ballistic Gun Light Assault Rifle Build | -11 ------- Run | Yrd Slots Evolved . | . Power . | . Propulsion . | . Utility . | . Weapon . | . Parts Attached 7 | 7 Power 1 | 1 Engine 1 | 1 Core . | . Reactor . | . Propulsion 2 | 2 Treads 2 | 2 Leg . | . Wheel . | . Hover . | . Flight . | . Utility 2 | 2 Device . | . Storage 1 | 1 Processor 1 | 1 Hackware . | . Protection . | . Artifact . | . Weapon 2 | 2 Energy Gun 1 | 1 Energy Cannon . | . Ballistic Gun 1 | 1 Ballistic Cannon . | . Launcher . | . Special Weapon . | . Impact Weapon . | . Slashing Weapon . | . Piercing Weapon . | . Special Melee Weapon . | . Unidentified Prototypes . | . Parts Lost 4 | 4 Power 1 | 1 Propulsion 2 | 2 Utility . | . Weapon 1 | 1 Highest Loss Streak 4 | 4 To Critical Strikes . | . Average Backups . | . Power . | . Propulsion . | . Utility . | . Weapon . | . Tool/Special . | . Unused Backups . | . Power . | . Propulsion . | . Utility . | . Weapon . | . Tool/Special . | . Average Slot Usage (%) . | . Peak Build Rating 7 | 7 Average Rating 6 | 6 On Entrance . | . Naked Turns . | . Heaviest Build 15 | 15 Greatest Support 40 | 40 Greatest Overweight (x) 3 | 3 Average Overweight (x) . | . Largest Inventory Capacity 10 | 10 Average Capacity 9 | 9 Most Carried 4 | 4 Average Carried . | . Final Capacity 10 | 10 Final Carried . | . Class Distribution -------------------- None Dominant Class ---------------- None Resources | -11 ----------- Run | Yrd Matter Collected 225 | 225 Remotely . | . Salvage Created 15 | 15 Parts . | . Haulers Intercepted . | . Recyclers Shooed . | . Parts Field Recycled . | . Retrieved Matter . | . Parts Self-Destructed . | . Prevented . | . Kills | -11 ------- Run | Yrd Combat Hostiles Destroyed 1 | 1 Guns 1 | 1 Classes Destroyed 1 | 1 Assembled 1 | 1 Best Kill Streak 1 | 1 Combat Bots Only 1 | 1 Max Kills in Single Turn 1 | 1 Gunslinging . | . Exploded . | . Melee . | . Uniques/NPCs Destroyed . | . Combat | -11 -------- Run | Yrd Hostile Shots Fired 57 | 57 Missed 14 | 14 Hits 43 | 43 Melee 11 | 11 Projectile 32 | 32 AOE 15 | 15 Part Disruptions 1 | 1 Damage Taken 746 | 746 Core 254 | 254 Absorbed by Shields . | . Ignored by Resistances 436 | 436 Core Remaining (%) . | . Volleys Fired 3 | 3 Largest 2 | 2 Hottest 60 | 60 Shots Fired 6 | 6 Gun 6 | 6 Cannon . | . Launcher . | . Special . | . Kinetic 3 | 3 Thermal 3 | 3 Explosive . | . Electromagnetic . | . Robot Hit Streak 6 | 6 Robot Miss Streak . | . Penetration Max . | . Secondary Targets 1 | 1 Max Gunslinging Chain 1 | 1 Shots Hit Robots 6 | 6 Core Hits 2 | 2 Critical Kills . | . Critical Parts Destroyed . | . Critical Strikes . | . Melee Attacks . | . Impact . | . Slashing . | . Piercing . | . Sneak Attacks . | . Combat Hostiles . | . Follow-up Attacks . | . Damage Inflicted 57 | 57 Guns 57 | 57 Cannons . | . Explosions . | . Melee . | . Ramming . | . Kinetic 23 | 23 Thermal 34 | 34 Explosive . | . Electromagnetic . | . Impact . | . Slashing . | . Piercing . | . Highest Corruption . | . Average Corruption . | . Corruption Purged . | . Corruption Blocked . | . Overload Shots . | . Overflow Damage . | . Projectiles . | . Explosions . | . Melee . | . Knockbacks . | . Impact . | . Kinetic . | . Secondary . | . Self-Inflicted Damage . | . Shots . | . Rammed . | . Targets Rammed . | . Kicked . | . Crushed . | . Highest Temperature 80 | 80 Average Temperature 48 | 48 Received Heat Transfer 120 | 120 Siege Activations . | . Martial Activations . | . Shielding Activations . | . Robots Disrupted . | . Combat Hostiles . | . Robots Corrupted . | . Combat Hostiles . | . Parts Fried . | . Impact Corruptions . | . Robots Melted . | . Combat Hostiles . | . Parts Melted . | . Heat Transferred 75 | 75 Parts Sabotaged . | . Parts Stolen . | . Parts Stripped . | . Power Chain Reactions . | . Alert | -11 ------- Run | Yrd Maximum Alert Level . | . Low Security (%) 100 | 100 Level 1 . | . Level 2 . | . Level 3 . | . Level 4 . | . Level 5 . | . High Security . | . Max Security . | . Peak Influence . | . Initial . | . Average . | . Influence Increases . | . Influence Decreases . | . Squads Dispatched . | . Investigation . | . Extermination . | . Reinforcement . | . Assault . | . Garrison . | . Intercept . | . Searches Triggered . | . Construction Impeded . | . Haulers Reinforced . | . Active Scanning Responses . | . Cargo Convoy Interrupts . | . Stealth | -11 --------- Run | Yrd Distress Signals . | . Communications Jammed . | . Distress Signals . | . Times Spotted 31 | 31 Peak Tracking Total 20 | 20 Tactical Retreats 1 | 1 Traps | -11 ------- Run | Yrd Traps Triggered . | . Indirectly . | . Trap Hack Attempts . | . Triggered . | . Disarmed . | . Reprogrammed . | . Reused . | . Traps Extracted . | . Installed . | . Triggered . | . Machines | -11 ---------- Run | Yrd Machines Disabled . | . Max in Single Turn . | . Machines Repaired . | . Machines Dismantled . | . Machines Sabotaged . | . Overloaded Fab Kills . | . Hacking | -11 --------- Run | Yrd Machines Accessed . | . Terminals . | . Fabricators . | . Repair Stations . | . Recycling Units . | . Scanalyzers . | . Garrison Access . | . Total Hacks . | . Successful . | . Failed . | . Catastrophic . | . Database Lockouts . | . Manual . | . Terminals . | . Fabricators . | . Repair Stations . | . Recycling Units . | . Scanalyzers . | . Garrison Access . | . Terminal Hacks . | . Fabricator Hacks . | . Repair Station Hacks . | . Recycling Unit Hacks . | . Scanalyzer . | . Garrison Access Hacks . | . Unauthorized Hacks . | . Terminals . | . Fabricators . | . Repair Stations . | . Recycling Units . | . Scanalyzers . | . Garrison Access . | . Data Cores Recovered . | . Used . | . Hacking Detections . | . Full Trace Events . | . Feedback Events . | . Feedback Blocked . | . Robot Schematics Acquired . | . Robots Built . | . Authchips . | . Time . | . Total Robot Build Rating . | . Part Schematics Acquired . | . Parts Built . | . Authchips . | . Time . | . Total Part Build Rating . | . Parts Repaired . | . Time . | . Parts Recycled . | . Recycled Matter . | . Retrieved Matter . | . Retrieved Components . | . Parts Scanalyzed . | . Part Schematics Acquired . | . Parts Damaged . | . Bothacking | -11 ------------ Run | Yrd Used RIF Installer . | . Robots Hacked . | . Non-combat . | . Combat . | . Robot Hacks Applied . | . Relay Couplers Released . | . Fabnet Peak Effective % . | . Robots Rewired . | . Allies Hacked . | . Hacks Repelled . | . Allies | -11 -------- Run | Yrd Total Allies . | . Largest Group . | . Highest-Rated Group . | . Highest-Rated Ally . | . Total Orders . | . Ally Attacks . | . Total Damage . | . Kills . | . Allies Corrupted . | . Allies Melted . | . Intel | -11 ------- Run | Yrd Active Infowar (turns) . | . Robot Analysis Total . | . Derelict Logs Recovered . | . Drone Launches . | . Drone Recoveries . | . Exploration | -11 ------------- Run | Yrd Turns Passed 1374 | 1374 Spaces Moved 338 | 338 Core 12 | 12 Treads 326 | 326 Legs . | . Wheels . | . Hover . | . Flight . | . Fastest Speed 50 | 50 Average Speed 157 | 157 Slowest Speed 200 | 200 Overloaded Moves . | . Propulsion Burnouts . | . Robots Hopped . | . Potential Cave-ins . | . Cave-ins Triggered . | . Exploration Rate (%) 25 | 25 Regions Visited . Branch Regions . Pre-discovered Areas . | . Known Exits Taken . | . Unknown Exits Taken . | . Scrap Searched . | . Spaces Dug . | . Terrain Destroyed . | . Melee . | . Projectile . | . AOE . | . Terrain Rammed . | . Walls Destroyed . | . Machines Disabled . | . Actions | -11 --------- Run | Yrd Total 1173 | 1173 Wait 818 | 818 Move 338 | 338 Hop . | . Pick Up 7 | 7 Fast Attach . | . Attach 7 | 7 Detach . | . Swap . | . Drop . | . Fire 3 | 3 Melee . | . Ram . | . Kick . | . Crush . | . Escape Stasis . | . Rewire . | . Trap . | . Miscellaneous . | . Route ------- -11/Scrapyard (discovered 1 exit: *Mat) History --------- Turn | Location | Event 11 | -11/Scrapyard | Identified exit to Materials 11 | -11/Scrapyard | Discovered exit to Materials (range 15) 1316 | -11/Scrapyard | Assembled infested the area 1368 | -11/Scrapyard | Core integrity fell below 50% 1373 | -11/Scrapyard | Core integrity fell below 20% 1375 | -11/Scrapyard | Destroyed by D-53 Grenadier with Mini Grenade Launcher Last Messages --------------- Switching to secondary target: as-45769. Sml. Laser destroyed. K-01 Serf collects debris. as-45769 destroyed. as-65398 destroyed. as-92731 destroyed. as-17854 destroyed. as-27059 destroyed. as-05645 destroyed. as-33339 destroyed. as-22981 destroyed. Lgt. Treads destroyed. The unstable cave ceiling collapses. Lgt. Ion Engine destroyed. as-78180 destroyed. as-67094 destroyed. as-64429 destroyed. Lgt. Treads destroyed. as-74605 destroyed. The unstable cave ceiling collapses. Map ----- +----------------------------------------------------+ | | | | | | | | | | | | | | | ?????????????????????????????????????????????????? | | ?????????????????????????????????????????????????? | | ?????????????????????????????????????????????????? | | ?????????????????????????????????????????????????? | | ?????????????????????????????????????????????????? | | ????????????????????##???????????????????????????? | | ??????????????????? "##?????????????????????????? | | ??????????????????? "?????####????????????????? | | ??????????????????? " ?????## ######???????????? | | ??????????????????? " ????## #???????????? | | ??????????????????#? "????# #???????????? | | ??????????????????? " ????# #???????????? | | ???????????????????? ????## ##??????????? | | ????????????????????#a ?#### ##?????????? | | ????????????###?#####a### #?????????? | | ????????????# # #%!## # #?????????? | | ?????????????# # ###????????? | | ?????????????# #????????? | | ?????????????# # a @ # # ## ########### | | ?????????????# # " | | ?????????????# # d % | | ?????????????######### # ########## | | ?????????????????????# #####????????? | | ?????????????????????# ## # ##????????????? | | ?????????????????????# ##########?????????????? | | ?????????????????????# #????????????????????##? | | ?????????????????????# #?????????????????#### # | | ?????????????????????# #?????????????????# | | ?????????????????????# #?????????????????# | | ?????????????????????# #?????????????????# | | ?????????????????????# #?????????????????# | | ?????????????????????# #?????????????# # # | | ?????????????????????# #?????????????# | | ?????????????????????# #?????????????# # | | ?????????????????????? ??????????????## ?# | | ?????????????????????????????????????????#??# | | ????????????????????????????????????????????# #### | | ??????????????????????????????????????????? ???? | | ????????????????????????????????????????? | | ????????????????????????????????????????# | | ????????????????????????????????????????## ### | | ????????????????????????????????????????? ??????? | | ????????????????????????????????????????#????????? | +----------------------------------------------------+ Best States ------------- Heat Dissipation 25 Energy Generation 10 Energy Capacity 125 Matter Stores 267 Matter Capacity 300 Sight Range 16 Terrain Scan Density 10 Resistance: KI 35 Resistance: TH 35 Resistance: EX 35 Resistance: EM 35 Resistance: I 35 Resistance: S 35 Resistance: P 35 Evasion (%) 50 Targeting Accuracy 5 Recoil Reduction 2 Offensive Hacking 20 Item Schematics ----------------- None Robot Schematics ------------------ None Fabricated ------------ Nothing Repaired ---------- Nothing Alien Tech Used ----------------- None Achievements -------------- None Challenges ------------ None Game ------ Seed AutogunImpactOptics Manual? 0 Play Time 00:11:30 Cumulative 7.0 hours Start 2025.05.07 @ 19:18:12 End 2025.05.07 @ 19:24:24 Sessions 0 Manual Loads 0 Difficulty Explorer Special Mode None Game No. 16 Rogue 12 Adventurer 0 Explorer 4 Win Type - Total 0 Types 0/0/0/0/0/0/0/0/0/0 Lore% 2 Gallery% 9 Achievement% 10 Wizard Run 0 Options --------- Layout 1 ASCII 0 Keyboard 0 Movement Mouse Keybinds 0 Fullscreen 1 Font 24/Smallcaps Map View 50x35 Zoom Use 2% Tactical HUD 0 Map Filters NONE Filters NONE Steam 1 RUN: c9cac5c7-687a-46ff-875a-40a1b8c4dd36